[Event "Titled Tuesday Blitz March 21 Late 2023"]
[White "Erdogan, Anil Berk"]
[Black "Stanisz, Patryk"]
[WhiteFideId "6348173"]
[BlackFideId "1123106"]
[WhiteElo "2007"]
[BlackElo "2069"]
[Result "1-0"]
[Round "02"]
[TimeControl "180+2"]
[Date "2023.03.21"]
[WhiteClock "0:00:19"]
[BlackClock "0:00:03"]

1. e4 {[%clk 0:03:00]}  c5 {[%clk 0:02:59]} 2. Nf3 {[%clk 0:02:56]}  Nc6 {[%clk 0:02:59]} 3. d4 {[%clk 0:02:56]}  cxd4 {[%clk 0:03:00]} 4. Nxd4 {[%clk 0:02:57]}  Nf6 {[%clk 0:03:00]} 5. Nc3 {[%clk 0:02:57]}  e5 {[%clk 0:03:00]} 6. Ndb5 {[%clk 0:02:55]}  d6 {[%clk 0:03:01]} 7. Nd5 {[%clk 0:02:55]}  Nxd5 {[%clk 0:03:00]} 8. exd5 {[%clk 0:02:56]}  Ne7 {[%clk 0:03:01]} 9. c3 {[%clk 0:02:56]}  Nf5 {[%clk 0:02:57]} 10. Bd3 {[%clk 0:02:55]}  Be7 {[%clk 0:02:56]} 11. O-O {[%clk 0:02:51]}  O-O {[%clk 0:02:54]} 12. c4 {[%clk 0:02:49]}  Nh4 {[%clk 0:02:53]} 13. f4 {[%clk 0:02:15]}  a6 {[%clk 0:02:52]} 14. Nc3 {[%clk 0:02:15]}  exf4 {[%clk 0:02:52]} 15. Bxf4 {[%clk 0:02:14]}  Qb6+ {[%clk 0:02:52]} 16. Kh1 {[%clk 0:02:11]}  Qxb2 {[%clk 0:02:52]} 17. Ne2 {[%clk 0:02:05]}  Bg4 {[%clk 0:02:31]} 18. h3 {[%clk 0:01:42]}  Bh5 {[%clk 0:02:04]} 19. Qc1 {[%clk 0:01:34]}  Qxc1 {[%clk 0:01:11]} 20. Rfxc1 {[%clk 0:01:34]}  Ng6 {[%clk 0:01:11]} 21. Bh2 {[%clk 0:01:25]}  Ne5 {[%clk 0:00:35]} 22. Bxe5 {[%clk 0:01:12]}  dxe5 {[%clk 0:00:35]} 23. c5 {[%clk 0:01:13]}  e4 {[%clk 0:00:28]} 24. Nf4 {[%clk 0:01:07]}  exd3 {[%clk 0:00:21]} 25. Nxh5 {[%clk 0:01:07]}  d2 {[%clk 0:00:17]} 26. Rc2 {[%clk 0:01:00]}  Bg5 {[%clk 0:00:17]} 27. h4 {[%clk 0:00:53]}  Rfe8 {[%clk 0:00:12]} 28. hxg5 {[%clk 0:00:42]}  Re1+ {[%clk 0:00:12]} 29. Kh2 {[%clk 0:00:42]}  d1=Q {[%clk 0:00:05]} 30. Rxd1 {[%clk 0:00:42]}  Rxd1 {[%clk 0:00:06]} 31. d6 {[%clk 0:00:38]}  Rc8 {[%clk 0:00:07]} 32. Nf4 {[%clk 0:00:37]}  Rxd6 {[%clk 0:00:06]} 33. Rb2 {[%clk 0:00:15]}  Rxc5 {[%clk 0:00:04]} 34. Rxb7 {[%clk 0:00:16]}  Rd8 {[%clk 0:00:03]} 35. Nd3 {[%clk 0:00:15]}  Rxg5 {[%clk 0:00:03]} 36. Nb4 {[%clk 0:00:15]}  Rh5+ {[%clk 0:00:03]} 37. Kg3 {[%clk 0:00:15]}  Ra5 {[%clk 0:00:03]} 38. Nc6 {[%clk 0:00:16]}  Ra3+ {[%clk 0:00:03]} 39. Kh2 {[%clk 0:00:15]}  Re8 {[%clk 0:00:02]} 40. Rb2 {[%clk 0:00:14]}  h6 {[%clk 0:00:02]} 41. Rc2 {[%clk 0:00:14]}  Rf8 {[%clk 0:00:01]} 42. Ne7+ {[%clk 0:00:14]}  Kh7 {[%clk 0:00:01]} 43. Nf5 {[%clk 0:00:15]}  Re8 {[%clk 0:00:01]} 44. Nd6 {[%clk 0:00:16]}  Ree3 {[%clk 0:00:01]} 45. Nxf7 {[%clk 0:00:16]}  Re1 {[%clk 0:00:02]} 46. Nd6 {[%clk 0:00:15]}  Ra1 {[%clk 0:00:03]} 47. Nf5 {[%clk 0:00:15]}  R1xa2 {[%clk 0:00:04]} 48. Rc7 {[%clk 0:00:15]}  Kg6 {[%clk 0:00:03]} 49. Nxg7 {[%clk 0:00:15]}  h5 {[%clk 0:00:04]} 50. Ne8 {[%clk 0:00:15]}  Rb2 {[%clk 0:00:05]} 51. Rg7+ {[%clk 0:00:15]}  Kf5 {[%clk 0:00:05]} 52. Nd6+ {[%clk 0:00:15]}  Kf4 {[%clk 0:00:05]} 53. Nc4 {[%clk 0:00:16]}  Raa2 {[%clk 0:00:04]} 54. Nxb2 {[%clk 0:00:16]}  Rxb2 {[%clk 0:00:04]} 55. Rf7+ {[%clk 0:00:16]}  Kg5 {[%clk 0:00:04]} 56. Ra7 {[%clk 0:00:16]}  Ra2 {[%clk 0:00:05]} 57. Rc7 {[%clk 0:00:16]}  a5 {[%clk 0:00:05]} 58. Rc5+ {[%clk 0:00:17]}  Kg4 {[%clk 0:00:06]} 59. Rc4+ {[%clk 0:00:17]}  Kg5 {[%clk 0:00:07]} 60. Kh3 {[%clk 0:00:18]}  a4 {[%clk 0:00:06]} 61. Rc5+ {[%clk 0:00:17]}  Kg6 {[%clk 0:00:07]} 62. g3 {[%clk 0:00:18]}  a3 {[%clk 0:00:06]} 63. Ra5 {[%clk 0:00:18]}  Ra1 {[%clk 0:00:07]} 64. Kg2 {[%clk 0:00:18]}  Kf6 {[%clk 0:00:06]} 65. Rxh5 {[%clk 0:00:16]}  Kg6 {[%clk 0:00:05]} 66. Ra5 {[%clk 0:00:16]}  Kf6 {[%clk 0:00:04]} 67. Kf3 {[%clk 0:00:17]}  Kg6 {[%clk 0:00:02]} 68. Kg4 {[%clk 0:00:17]}  Kf6 {[%clk 0:00:03]} 69. Ra6+ {[%clk 0:00:18]}  Kg7 {[%clk 0:00:04]} 70. Kg5 {[%clk 0:00:19]}  Kf7 {[%clk 0:00:04]} 71. g4 {[%clk 0:00:19]}  Kg7 {[%clk 0:00:03]} 72. Ra7+ {[%clk 0:00:19]}  Kf8 {[%clk 0:00:03]} 73. Kf6 {[%clk 0:00:19]}  a2 {[%clk 0:00:03]} 74. Ra8# {[%clk 0:00:19]} 1-0


[Site "https://www.chess.com"]

[Event "Titled Tuesday Blitz March 21 Late 2023"]
[White "Shapiro, Viktor"]
[Black "monkins"]
[WhiteFideId "4175700"]
[WhiteElo "2152"]
[BlackElo "2251"]
[Result "1-0"]
[Round "02"]
[TimeControl "180+2"]
[Date "2023.03.21"]
[WhiteClock "0:00:38"]
[BlackClock "0:00:02"]

1. c4 {[%clk 0:03:00]}  Nf6 {[%clk 0:02:57]} 2. Nc3 {[%clk 0:03:01]}  c5 {[%clk 0:02:57]} 3. g3 {[%clk 0:03:01]}  d5 {[%clk 0:02:58]} 4. Bg2 {[%clk 0:03:02]}  d4 {[%clk 0:02:57]} 5. Na4 {[%clk 0:03:02]}  e5 {[%clk 0:02:54]} 6. d3 {[%clk 0:03:00]}  h6 {[%clk 0:02:50]} 7. Nf3 {[%clk 0:02:59]}  Nc6 {[%clk 0:02:49]} 8. O-O {[%clk 0:02:58]}  Be7 {[%clk 0:02:48]} 9. a3 {[%clk 0:02:59]}  a5 {[%clk 0:02:48]} 10. Qb3 {[%clk 0:02:56]}  Nd7 {[%clk 0:02:45]} 11. e3 {[%clk 0:02:55]}  dxe3 {[%clk 0:02:24]} 12. Bxe3 {[%clk 0:02:55]}  O-O {[%clk 0:02:24]} 13. Rfe1 {[%clk 0:02:43]}  Qc7 {[%clk 0:02:24]} 14. Nc3 {[%clk 0:02:24]}  Nf6 {[%clk 0:02:15]} 15. h3 {[%clk 0:02:20]}  Bf5 {[%clk 0:02:14]} 16. Rad1 {[%clk 0:02:13]}  Rfd8 {[%clk 0:02:08]} 17. Nd5 {[%clk 0:02:03]}  Nxd5 {[%clk 0:02:03]} 18. cxd5 {[%clk 0:02:03]}  Nd4 {[%clk 0:01:58]} 19. Bxd4 {[%clk 0:02:02]}  exd4 {[%clk 0:01:50]} 20. Ne5 {[%clk 0:01:55]}  a4 {[%clk 0:01:35]} 21. Qc2 {[%clk 0:01:45]}  Bd6 {[%clk 0:01:19]} 22. Nc4 {[%clk 0:01:45]}  b5 {[%clk 0:01:10]} 23. Nd2 {[%clk 0:01:44]}  Qd7 {[%clk 0:00:57]} 24. Kh2 {[%clk 0:01:42]}  Rac8 {[%clk 0:00:52]} 25. Ne4 {[%clk 0:01:40]}  Bf8 {[%clk 0:00:44]} 26. Qe2 {[%clk 0:01:33]}  b4 {[%clk 0:00:38]} 27. Nd2 {[%clk 0:01:29]}  bxa3 {[%clk 0:00:34]} 28. bxa3 {[%clk 0:01:29]}  Rb8 {[%clk 0:00:34]} 29. Nc4 {[%clk 0:01:28]}  Rb3 {[%clk 0:00:28]} 30. g4 {[%clk 0:01:22]}  Bd6+ {[%clk 0:00:19]} 31. Kh1 {[%clk 0:01:21]}  Bg6 {[%clk 0:00:18]} 32. Be4 {[%clk 0:01:07]}  Bb8 {[%clk 0:00:11]} 33. Qf3 {[%clk 0:00:54]}  Kh7 {[%clk 0:00:06]} 34. Qg2 {[%clk 0:00:48]}  Qc7 {[%clk 0:00:02]} 35. Rf1 {[%clk 0:00:38]} 1-0


[Site "https://www.chess.com"]

[Event "Titled Tuesday Blitz March 21 Late 2023"]
[White "Thiel, Thomas"]
[Black "reevecanada"]
[WhiteFideId "4615964"]
[WhiteElo "2250"]
[BlackElo "2481"]
[Result "1-0"]
[Round "02"]
[TimeControl "180+2"]
[Date "2023.03.21"]
[WhiteClock "0:00:06"]
[BlackClock "0:01:28"]

1. e4 {[%clk 0:03:00]}  c5 {[%clk 0:02:58]} 2. Nc3 {[%clk 0:02:58]}  d6 {[%clk 0:02:57]} 3. f4 {[%clk 0:02:53]}  Nc6 {[%clk 0:02:56]} 4. Nf3 {[%clk 0:02:52]}  g6 {[%clk 0:02:57]} 5. Bc4 {[%clk 0:02:50]}  Bg7 {[%clk 0:02:57]} 6. O-O {[%clk 0:02:48]}  e6 {[%clk 0:02:58]} 7. f5 {[%clk 0:02:47]}  Nf6 {[%clk 0:02:54]} 8. fxe6 {[%clk 0:02:45]}  fxe6 {[%clk 0:02:55]} 9. e5 {[%clk 0:02:28]}  Nxe5 {[%clk 0:02:46]} 10. Nxe5 {[%clk 0:02:25]}  dxe5 {[%clk 0:02:47]} 11. d3 {[%clk 0:02:23]}  O-O {[%clk 0:02:46]} 12. Qe2 {[%clk 0:02:11]}  Qd4+ {[%clk 0:02:40]} 13. Be3 {[%clk 0:02:09]}  Qg4 {[%clk 0:02:40]} 14. Rxf6 {[%clk 0:02:04]}  Qxe2 {[%clk 0:02:34]} 15. Rxf8+ {[%clk 0:02:04]}  Kxf8 {[%clk 0:02:34]} 16. Bxc5+ {[%clk 0:01:59]}  Ke8 {[%clk 0:02:34]} 17. Nxe2 {[%clk 0:01:58]}  b6 {[%clk 0:02:33]} 18. Bb5+ {[%clk 0:01:55]}  Kf7 {[%clk 0:02:32]} 19. Rf1+ {[%clk 0:01:51]}  Bf6 {[%clk 0:02:32]} 20. Bd6 {[%clk 0:01:44]}  Kg7 {[%clk 0:02:29]} 21. Ng3 {[%clk 0:01:43]}  Bb7 {[%clk 0:02:29]} 22. Ne4 {[%clk 0:01:41]}  Bxe4 {[%clk 0:02:26]} 23. dxe4 {[%clk 0:01:41]}  Rd8 {[%clk 0:02:26]} 24. Bb4 {[%clk 0:01:36]}  Rd4 {[%clk 0:02:25]} 25. Bc3 {[%clk 0:01:33]}  Rxe4 {[%clk 0:02:24]} 26. Bd3 {[%clk 0:01:32]}  Ra4 {[%clk 0:02:24]} 27. Re1 {[%clk 0:01:26]}  Rxa2 {[%clk 0:02:21]} 28. Bc4 {[%clk 0:01:23]}  Ra4 {[%clk 0:02:17]} 29. Bxe6 {[%clk 0:01:20]}  e4 {[%clk 0:02:16]} 30. Bxf6+ {[%clk 0:01:16]}  Kxf6 {[%clk 0:02:17]} 31. Bb3 {[%clk 0:01:14]}  Rb4 {[%clk 0:02:16]} 32. Kf2 {[%clk 0:01:10]}  a5 {[%clk 0:02:14]} 33. Ra1 {[%clk 0:00:50]}  Kf5 {[%clk 0:02:07]} 34. Ke3 {[%clk 0:00:48]}  Rb5 {[%clk 0:02:06]} 35. Ra4 {[%clk 0:00:48]}  Re5 {[%clk 0:02:06]} 36. c3 {[%clk 0:00:42]}  h5 {[%clk 0:02:04]} 37. Bc2 {[%clk 0:00:42]}  Rb5 {[%clk 0:01:54]} 38. Rxe4 {[%clk 0:00:43]}  Kf6 {[%clk 0:01:53]} 39. b4 {[%clk 0:00:39]}  axb4 {[%clk 0:01:51]} 40. Rxb4 {[%clk 0:00:38]}  Re5+ {[%clk 0:01:51]} 41. Be4 {[%clk 0:00:35]}  Re6 {[%clk 0:01:52]} 42. Kd4 {[%clk 0:00:34]}  Kg5 {[%clk 0:01:51]} 43. Bd5 {[%clk 0:00:34]}  Rf6 {[%clk 0:01:50]} 44. c4 {[%clk 0:00:33]}  Kf4 {[%clk 0:01:49]} 45. Rb2 {[%clk 0:00:31]}  Kg5 {[%clk 0:01:47]} 46. Ke5 {[%clk 0:00:29]}  Rf5+ {[%clk 0:01:46]} 47. Kd6 {[%clk 0:00:29]}  Kh4 {[%clk 0:01:39]} 48. Rxb6 {[%clk 0:00:25]}  Rf6+ {[%clk 0:01:38]} 49. Be6 {[%clk 0:00:23]}  Rf2 {[%clk 0:01:37]} 50. c5 {[%clk 0:00:22]}  Rxg2 {[%clk 0:01:36]} 51. c6 {[%clk 0:00:22]}  Rd2+ {[%clk 0:01:36]} 52. Bd5 {[%clk 0:00:20]}  Rxh2 {[%clk 0:01:35]} 53. c7 {[%clk 0:00:19]}  Rc2 {[%clk 0:01:36]} 54. Rc6 {[%clk 0:00:18]}  Rxc6+ {[%clk 0:01:35]} 55. Kxc6 {[%clk 0:00:16]}  g5 {[%clk 0:01:35]} 56. c8=Q {[%clk 0:00:16]}  g4 {[%clk 0:01:36]} 57. Qf5 {[%clk 0:00:15]}  g3 {[%clk 0:01:34]} 58. Be6 {[%clk 0:00:11]}  g2 {[%clk 0:01:29]} 59. Qh3+ {[%clk 0:00:11]}  Kg5 {[%clk 0:01:29]} 60. Qxg2+ {[%clk 0:00:11]}  Kf6 {[%clk 0:01:30]} 61. Qh3 {[%clk 0:00:10]}  h4 {[%clk 0:01:31]} 62. Qxh4+ {[%clk 0:00:11]}  Kxe6 {[%clk 0:01:31]} 63. Qh5 {[%clk 0:00:11]}  Kf6 {[%clk 0:01:31]} 64. Kd5 {[%clk 0:00:08]}  Ke7 {[%clk 0:01:31]} 65. Ke5 {[%clk 0:00:08]}  Kd7 {[%clk 0:01:30]} 66. Qh6 {[%clk 0:00:06]}  Kc7 {[%clk 0:01:31]} 67. Qa6 {[%clk 0:00:06]}  Kd7 {[%clk 0:01:30]} 68. Qb6 {[%clk 0:00:06]}  Ke7 {[%clk 0:01:30]} 69. Qc7+ {[%clk 0:00:06]}  Ke8 {[%clk 0:01:29]} 70. Ke6 {[%clk 0:00:06]}  Kf8 {[%clk 0:01:28]} 71. Qf7# {[%clk 0:00:06]} 1-0


[Site "https://www.chess.com"]

[Event "Titled Tuesday Blitz March 21 Late 2023"]
[White "Fajdetic, Hrvoje"]
[Black "cryptoguru02"]
[WhiteFideId "14501945"]
[WhiteElo "2185"]
[BlackElo "2479"]
[Result "0-1"]
[Round "02"]
[TimeControl "180+2"]
[Date "2023.03.21"]
[WhiteClock "0:00:15"]
[BlackClock "0:01:00"]

1. d4 {[%clk 0:02:55]}  g6 {[%clk 0:03:00]} 2. Nc3 {[%clk 0:02:54]}  Bg7 {[%clk 0:03:00]} 3. e4 {[%clk 0:02:54]}  d6 {[%clk 0:03:00]} 4. Be3 {[%clk 0:02:52]}  c6 {[%clk 0:03:00]} 5. Qd2 {[%clk 0:02:53]}  b5 {[%clk 0:02:59]} 6. O-O-O {[%clk 0:02:53]}  Nd7 {[%clk 0:02:59]} 7. h4 {[%clk 0:02:51]}  h5 {[%clk 0:02:58]} 8. f3 {[%clk 0:02:51]}  Qa5 {[%clk 0:02:57]} 9. Kb1 {[%clk 0:02:50]}  Nb6 {[%clk 0:02:57]} 10. Nh3 {[%clk 0:02:41]}  Nc4 {[%clk 0:02:44]} 11. Bxc4 {[%clk 0:02:37]}  bxc4 {[%clk 0:02:45]} 12. Ne2 {[%clk 0:02:01]}  Qa6 {[%clk 0:02:32]} 13. c3 {[%clk 0:01:58]}  Rb8 {[%clk 0:02:31]} 14. Ng5 {[%clk 0:01:38]}  Nf6 {[%clk 0:02:26]} 15. Nf4 {[%clk 0:01:25]}  Qa5 {[%clk 0:02:15]} 16. Ka1 {[%clk 0:01:01]}  O-O {[%clk 0:02:13]} 17. g4 {[%clk 0:00:59]}  e5 {[%clk 0:01:56]} 18. dxe5 {[%clk 0:00:51]}  dxe5 {[%clk 0:01:57]} 19. Nxh5 {[%clk 0:00:20]}  gxh5 {[%clk 0:01:51]} 20. gxh5 {[%clk 0:00:20]}  Nxh5 {[%clk 0:01:49]} 21. Rdg1 {[%clk 0:00:20]}  f6 {[%clk 0:01:35]} 22. Nh3 {[%clk 0:00:18]}  Be6 {[%clk 0:01:31]} 23. Bh6 {[%clk 0:00:16]}  Kf7 {[%clk 0:01:14]} 24. Bxg7 {[%clk 0:00:14]}  Nxg7 {[%clk 0:01:15]} 25. f4 {[%clk 0:00:14]}  Bxh3 {[%clk 0:01:11]} 26. Rxh3 {[%clk 0:00:15]}  Qd8 {[%clk 0:01:01]} 27. h5 {[%clk 0:00:15]}  Qxd2 {[%clk 0:01:00]} 0-1


[Site "https://www.chess.com"]

[Event "Titled Tuesday Blitz March 21 Late 2023"]
[White "Lauridsen, Jesper Morch"]
[Black "Zirkelbach, Maj"]
[WhiteFideId "1401890"]
[BlackFideId "14613395"]
[WhiteElo "2247"]
[BlackElo "2138"]
[Result "0-1"]
[Round "02"]
[TimeControl "180+2"]
[Date "2023.03.21"]
[WhiteClock "0:00:04"]
[BlackClock "0:00:16"]

1. e4 {[%clk 0:03:00]}  e5 {[%clk 0:02:59]} 2. Nf3 {[%clk 0:02:59]}  Nc6 {[%clk 0:02:58]} 3. Bb5 {[%clk 0:03:00]}  Nf6 {[%clk 0:02:58]} 4. O-O {[%clk 0:02:59]}  Nxe4 {[%clk 0:02:49]} 5. d4 {[%clk 0:02:57]}  Nd6 {[%clk 0:02:48]} 6. Bxc6 {[%clk 0:02:56]}  dxc6 {[%clk 0:02:48]} 7. dxe5 {[%clk 0:02:56]}  Nf5 {[%clk 0:02:49]} 8. Qxd8+ {[%clk 0:02:53]}  Kxd8 {[%clk 0:02:49]} 9. h3 {[%clk 0:02:52]}  h5 {[%clk 0:02:49]} 10. Nc3 {[%clk 0:02:49]}  Ke8 {[%clk 0:02:49]} 11. b3 {[%clk 0:02:38]}  a5 {[%clk 0:02:48]} 12. Bb2 {[%clk 0:02:37]}  Be7 {[%clk 0:02:48]} 13. Rad1 {[%clk 0:02:36]}  Be6 {[%clk 0:02:47]} 14. a4 {[%clk 0:02:29]}  Rd8 {[%clk 0:02:24]} 15. Ne2 {[%clk 0:02:20]}  Bd5 {[%clk 0:02:10]} 16. Nfd4 {[%clk 0:02:10]}  Nxd4 {[%clk 0:02:05]} 17. Bxd4 {[%clk 0:02:03]}  c5 {[%clk 0:02:03]} 18. Bc3 {[%clk 0:01:53]}  c4 {[%clk 0:02:02]} 19. Nf4 {[%clk 0:01:49]}  Be4 {[%clk 0:01:39]} 20. Rxd8+ {[%clk 0:01:39]}  Bxd8 {[%clk 0:01:25]} 21. Bxa5 {[%clk 0:01:23]}  Bxc2 {[%clk 0:01:23]} 22. bxc4 {[%clk 0:01:22]}  Bxa4 {[%clk 0:01:23]} 23. Nd5 {[%clk 0:01:04]}  b6 {[%clk 0:01:10]} 24. Bc3 {[%clk 0:00:56]}  c6 {[%clk 0:01:10]} 25. Ne3 {[%clk 0:00:40]}  b5 {[%clk 0:01:00]} 26. Nf5 {[%clk 0:00:25]}  g6 {[%clk 0:00:16]} 27. e6 {[%clk 0:00:10]}  f6 {[%clk 0:00:16]} 28. Nd6+ {[%clk 0:00:08]}  Ke7 {[%clk 0:00:17]} 29. Bb4 {[%clk 0:00:06]}  Kxe6 {[%clk 0:00:16]} 30. Re1+ {[%clk 0:00:06]}  Kd7 {[%clk 0:00:16]} 31. Nf7 {[%clk 0:00:04]}  Re8 {[%clk 0:00:16]} 0-1


[Site "https://www.chess.com"]

[Event "Titled Tuesday Blitz March 21 Late 2023"]
[White "Barria Santos, Jose Guilherme"]
[Black "Kubatko, Ivan"]
[WhiteFideId "1939300"]
[BlackFideId "24111473"]
[WhiteElo "2301"]
[BlackElo "2285"]
[Result "0-1"]
[Round "02"]
[TimeControl "180+2"]
[Date "2023.03.21"]
[WhiteClock "0:00:04"]
[BlackClock "0:01:29"]

1. d4 {[%clk 0:03:00]}  d5 {[%clk 0:02:59]} 2. c4 {[%clk 0:02:59]}  e6 {[%clk 0:02:59]} 3. Nc3 {[%clk 0:02:59]}  c5 {[%clk 0:02:59]} 4. cxd5 {[%clk 0:02:55]}  cxd4 {[%clk 0:02:59]} 5. Qxd4 {[%clk 0:02:50]}  Nc6 {[%clk 0:02:59]} 6. Qd1 {[%clk 0:02:42]}  exd5 {[%clk 0:02:59]} 7. e3 {[%clk 0:02:31]}  Nf6 {[%clk 0:02:58]} 8. Nf3 {[%clk 0:02:28]}  Bd6 {[%clk 0:02:58]} 9. Bd3 {[%clk 0:02:23]}  O-O {[%clk 0:02:58]} 10. O-O {[%clk 0:02:22]}  Bg4 {[%clk 0:02:57]} 11. Be2 {[%clk 0:02:09]}  Re8 {[%clk 0:02:57]} 12. b3 {[%clk 0:02:06]}  a6 {[%clk 0:02:51]} 13. Bb2 {[%clk 0:02:05]}  Bc7 {[%clk 0:02:51]} 14. Re1 {[%clk 0:01:35]}  Qd6 {[%clk 0:02:50]} 15. g3 {[%clk 0:01:33]}  Rad8 {[%clk 0:02:47]} 16. Bf1 {[%clk 0:01:17]}  d4 {[%clk 0:02:39]} 17. Na4 {[%clk 0:00:40]}  b5 {[%clk 0:02:34]} 18. h3 {[%clk 0:00:19]}  Bh5 {[%clk 0:02:10]} 19. Rc1 {[%clk 0:00:14]}  bxa4 {[%clk 0:01:53]} 20. Qc2 {[%clk 0:00:10]}  Bxf3 {[%clk 0:01:52]} 21. e4 {[%clk 0:00:05]}  Ba5 {[%clk 0:01:29]} 22. Qxc6 {[%clk 0:00:04]}  Qxc6 {[%clk 0:01:29]} 23. Rxc6 {[%clk 0:00:04]}  Bxe1 {[%clk 0:01:29]} 0-1


[Site "https://www.chess.com"]

[Event "Titled Tuesday Blitz March 21 Late 2023"]
[White "Donskov, Anatoly"]
[Black "Fernandez Hernandez, Gerardo"]
[WhiteFideId "24143413"]
[BlackFideId "2207400"]
[WhiteElo "2247"]
[BlackElo "2226"]
[Result "1-0"]
[Round "02"]
[TimeControl "180+2"]
[Date "2023.03.21"]
[WhiteClock "0:02:21"]
[BlackClock "0:02:28"]

1. e4 {[%clk 0:03:00]}  e6 {[%clk 0:02:58]} 2. d4 {[%clk 0:03:00]}  d5 {[%clk 0:02:58]} 3. Nc3 {[%clk 0:03:01]}  Nc6 {[%clk 0:02:58]} 4. Nf3 {[%clk 0:02:57]}  Nf6 {[%clk 0:02:59]} 5. Bd3 {[%clk 0:02:54]}  Bb4 {[%clk 0:02:57]} 6. e5 {[%clk 0:02:49]}  Ne4 {[%clk 0:02:57]} 7. Bd2 {[%clk 0:02:49]}  Nxd2 {[%clk 0:02:56]} 8. Qxd2 {[%clk 0:02:49]}  f6 {[%clk 0:02:57]} 9. a3 {[%clk 0:02:41]}  Bxc3 {[%clk 0:02:56]} 10. bxc3 {[%clk 0:02:41]}  fxe5 {[%clk 0:02:57]} 11. dxe5 {[%clk 0:02:41]}  O-O {[%clk 0:02:52]} 12. O-O {[%clk 0:02:40]}  Rxf3 {[%clk 0:02:47]} 13. gxf3 {[%clk 0:02:40]}  Nxe5 {[%clk 0:02:47]} 14. Qf4 {[%clk 0:02:36]}  Qg5+ {[%clk 0:02:36]} 15. Qxg5 {[%clk 0:02:23]}  Nxf3+ {[%clk 0:02:35]} 16. Kg2 {[%clk 0:02:22]}  Nxg5 {[%clk 0:02:36]} 17. f4 {[%clk 0:02:22]}  Ne4 {[%clk 0:02:27]} 18. Bxe4 {[%clk 0:02:22]}  dxe4 {[%clk 0:02:28]} 19. Rad1 {[%clk 0:02:22]}  Bd7 {[%clk 0:02:28]} 20. Rxd7 {[%clk 0:02:21]} 1-0


[Site "https://www.chess.com"]

[Event "Titled Tuesday Blitz March 21 Late 2023"]
[White "Guliev, Logman"]
[Black "Dylag, Emilia"]
[WhiteFideId "13400061"]
[BlackFideId "21805172"]
[WhiteElo "2161"]
[BlackElo "1878"]
[Result "1-0"]
[Round "02"]
[TimeControl "180+2"]
[Date "2023.03.21"]
[WhiteClock "0:00:59"]
[BlackClock "0:00:09"]

1. e4 {[%clk 0:03:00]}  e6 {[%clk 0:02:54]} 2. d4 {[%clk 0:02:54]}  d5 {[%clk 0:02:55]} 3. Nc3 {[%clk 0:02:52]}  dxe4 {[%clk 0:02:53]} 4. Nxe4 {[%clk 0:02:52]}  Nd7 {[%clk 0:02:51]} 5. Nf3 {[%clk 0:02:52]}  Ngf6 {[%clk 0:02:50]} 6. Nxf6+ {[%clk 0:02:53]}  Nxf6 {[%clk 0:02:51]} 7. Bd3 {[%clk 0:02:53]}  c5 {[%clk 0:02:49]} 8. Bg5 {[%clk 0:02:51]}  cxd4 {[%clk 0:02:46]} 9. Qe2 {[%clk 0:02:51]}  Bb4+ {[%clk 0:02:44]} 10. Nd2 {[%clk 0:02:48]}  O-O {[%clk 0:02:42]} 11. O-O-O {[%clk 0:02:44]}  h6 {[%clk 0:02:32]} 12. Bh4 {[%clk 0:02:35]}  g5 {[%clk 0:02:14]} 13. Bg3 {[%clk 0:02:34]}  Qa5 {[%clk 0:02:08]} 14. Kb1 {[%clk 0:02:30]}  Nd5 {[%clk 0:02:06]} 15. Nb3 {[%clk 0:02:25]}  Qa4 {[%clk 0:02:03]} 16. Qe4 {[%clk 0:02:18]}  f5 {[%clk 0:01:59]} 17. Qxd4 {[%clk 0:02:18]}  Bd7 {[%clk 0:01:43]} 18. c4 {[%clk 0:01:58]}  Nf6 {[%clk 0:01:33]} 19. Be5 {[%clk 0:01:48]}  Ng4 {[%clk 0:01:28]} 20. Bh8 {[%clk 0:01:39]}  Rf7 {[%clk 0:01:17]} 21. h4 {[%clk 0:01:29]}  Re8 {[%clk 0:01:02]} 22. Be5 {[%clk 0:01:11]}  Bc6 {[%clk 0:00:49]} 23. hxg5 {[%clk 0:01:10]}  Rd7 {[%clk 0:00:49]} 24. Qf4 {[%clk 0:01:07]}  Red8 {[%clk 0:00:33]} 25. gxh6 {[%clk 0:01:05]}  Rxd3 {[%clk 0:00:14]} 26. Rxd3 {[%clk 0:01:03]}  Rxd3 {[%clk 0:00:14]} 27. h7+ {[%clk 0:01:02]}  Kf7 {[%clk 0:00:14]} 28. h8=Q {[%clk 0:01:00]}  Be4 {[%clk 0:00:10]} 29. Rh7+ {[%clk 0:00:59]}  Kg6 {[%clk 0:00:09]} 30. Qg7# {[%clk 0:00:59]} 1-0


[Site "https://www.chess.com"]

[Event "Titled Tuesday Blitz March 21 Late 2023"]
[White "Elaisaz"]
[Black "Tymrakiewicz, Rafal"]
[BlackFideId "1108832"]
[WhiteElo "2196"]
[BlackElo "2151"]
[Result "1-0"]
[Round "02"]
[TimeControl "180+2"]
[Date "2023.03.21"]
[WhiteClock "0:00:04"]
[BlackClock "0:00:01"]

1. e4 {[%clk 0:02:59]}  Nf6 {[%clk 0:03:00]} 2. e5 {[%clk 0:02:58]}  Nd5 {[%clk 0:03:00]} 3. c4 {[%clk 0:02:58]}  Nb6 {[%clk 0:03:00]} 4. d4 {[%clk 0:02:58]}  d6 {[%clk 0:03:00]} 5. exd6 {[%clk 0:02:58]}  cxd6 {[%clk 0:03:01]} 6. Nc3 {[%clk 0:02:56]}  g6 {[%clk 0:03:01]} 7. Be3 {[%clk 0:02:53]}  Bg7 {[%clk 0:03:01]} 8. h3 {[%clk 0:02:53]}  O-O {[%clk 0:03:01]} 9. Nf3 {[%clk 0:02:53]}  Bf5 {[%clk 0:02:59]} 10. Be2 {[%clk 0:02:52]}  d5 {[%clk 0:02:56]} 11. c5 {[%clk 0:02:35]}  Nc4 {[%clk 0:02:56]} 12. Bf4 {[%clk 0:02:25]}  Nc6 {[%clk 0:02:47]} 13. b3 {[%clk 0:01:58]}  N4a5 {[%clk 0:01:29]} 14. O-O {[%clk 0:01:52]}  b6 {[%clk 0:01:22]} 15. b4 {[%clk 0:01:23]}  Nxb4 {[%clk 0:01:15]} 16. Nb5 {[%clk 0:00:37]}  bxc5 {[%clk 0:00:14]} 17. a3 {[%clk 0:00:36]}  Nbc6 {[%clk 0:00:13]} 18. Rc1 {[%clk 0:00:35]}  c4 {[%clk 0:00:13]} 19. Ne5 {[%clk 0:00:12]}  Nxe5 {[%clk 0:00:12]} 20. dxe5 {[%clk 0:00:11]}  Nb3 {[%clk 0:00:12]} 21. Rc3 {[%clk 0:00:07]}  Qa5 {[%clk 0:00:12]} 22. Qxd5 {[%clk 0:00:02]}  a6 {[%clk 0:00:05]} 23. Qxc4 {[%clk 0:00:03]}  Qxb5 {[%clk 0:00:04]} 24. Qxb3 {[%clk 0:00:03]}  Qxb3 {[%clk 0:00:04]} 25. Rxb3 {[%clk 0:00:04]}  a5 {[%clk 0:00:03]} 26. Rb7 {[%clk 0:00:03]}  Rfe8 {[%clk 0:00:01]} 27. Bf3 {[%clk 0:00:04]} 1-0


[Site "https://www.chess.com"]